bitfinex/quotes_SOLUSD_20240918
["timestamp","ask_amount","ask_price","bid_price","bid_amount"]
[1726700954015,0.2599301,132.16,132.15,22.97151179]
[1726700954312,0.2599301,132.16,132.15,41.45849318]
[1726700954497,0.2599301,132.16,132.15,42.9713282]
[1726700954890,0.2599301,132.16,132.15,43.34781159]
[1726700955090,0.2599301,132.16,132.15,41.83496318]
[1726700956806,0.2599301,132.16,132.15,27.5671]
[1726700957005,0.2599301,132.16,132.15,41.45849318]
[1726700959498,0.2599301,132.16,132.15,42.97134123]
[1726700959694,0.2599301,132.16,132.15,43.34781123]
[1726700960709,0.2599301,132.16,132.15,41.83496318]
[1726700961112,0.2599301,132.16,132.15,21.83496318]
[1726700961327,0.2599301,132.16,132.15,41.83496318]
[1726700963408,0.2599301,132.16,132.15,43.34758576]
[1726700963624,0.2599301,132.16,132.15,41.83496318]
[1726700964028,0.2599301,132.16,132.15,43.34758471]
[1726700964519,0.2599301,132.16,132.15,41.83496318]
[1726700964718,0.2599301,132.16,132.15,21.83496318]
[1726700965333,0.2599301,132.16,132.15,41.83496318]
[1726700967413,0.2599301,132.16,132.15,41.70947318]
[1726700967614,0.2599301,132.16,132.15,23.09682734]
[1726700967824,0.2599301,132.16,132.15,21.83496318]
[1726700968836,0.2599301,132.16,132.15,41.83496318]
[1726700974731,0.2599301,132.16,132.15,43.34762067]
[1726700974923,0.2599301,132.16,132.15,41.83496318]
[1726700980324,0.2599301,132.2,132.19,26.4769]
[1726700980532,3.01e-05,132.2,132.19,60.74476318]
[1726700982349,3.01e-05,132.2,132.19,46.4769]
[1726700983052,3.01e-05,132.2,132.19,60.36829318]
[1726700989152,3.01e-05,132.2,132.19,62.25712979]
[1726700989356,3.01e-05,132.2,132.19,60.74476318]
[1726700994168,3.01e-05,132.2,132.19,46.4769]
[1726700994369,3.01e-05,132.2,132.19,60.36829318]
[1726700994685,3.01e-05,132.2,132.19,26.4769]
[1726700995367,3.01e-05,132.2,132.19,27.98950491]
[1726700995671,3.01e-05,132.2,132.19,26.4769]
[1726700996357,3.01e-05,132.2,132.19,41.88091398]
[1726700997284,3.01e-05,132.2,132.19,27.9895208]
[1726700999059,3.01e-05,132.2,132.19,26.4769]
[1726701001366,3.01e-05,132.2,132.19,27.98935475]
[1726701001789,3.01e-05,132.2,132.19,40.36829318]
[1726701003260,3.01e-05,132.2,132.19,41.88065817]
[1726701003794,3.01e-05,132.2,132.19,61.88065817]
[1726701004359,3.01e-05,132.2,132.19,62.13163817]
[1726701007685,3.01e-05,132.2,132.19,62.25712817]
[1726701007894,3.01e-05,132.2,132.19,62.25689362]
[1726701008064,3.01e-05,132.2,132.19,72.76967174]
[1726701008388,3.01e-05,132.2,132.19,60.74476318]
[1726701010587,0.2599301,132.24,132.23,64.2818]
[1726701010773,0.2599301,132.24,132.23,26.4689]
[1726701011287,0.2599301,132.24,132.23,18.9064]
[1726701011470,0.2599301,132.24,132.23,26.4689]
[1726701019170,0.2599301,132.24,132.23,40.36029318]
[1726701019572,0.2599301,132.24,132.23,26.4689]
[1726701023169,0.2599301,132.24,132.23,41.87232759]
[1726701023393,0.2599301,132.24,132.23,61.99774367]
[1726701023697,0.2599301,132.24,132.23,60.73676318]
[1726701025277,0.2599301,132.24,132.23,62.24853143]
[1726701025497,0.2599301,132.24,132.23,60.73676318]
[1726701025703,0.2599301,132.24,132.23,62.24852974]
[1726701026894,0.2599301,132.24,132.23,62.2485312]
[1726701027095,0.2599301,132.24,132.23,60.73676318]
[1726701027488,0.2599301,132.24,132.23,46.4689]
[1726701029002,0.2599301,132.24,132.23,60.36029318]
[1726701029191,0.2599301,132.24,132.23,62.24868867]
[1726701030190,3.01e-05,132.24,132.23,62.24868867]
[1726701030391,0.2599301,132.28,132.27,26.4609]
[1726701030593,0.2599301,132.28,132.27,40.72876318]
[1726701030904,0.2599301,132.28,132.27,60.72876318]
[1726701031806,0.2599301,132.28,132.27,46.83737]
[1726701032394,0.2599301,132.28,132.27,46.71188]
[1726701032907,0.2599301,132.28,132.27,46.58639]
[1726701033487,0.2599301,132.28,132.27,60.47778318]
[1726701035708,0.2599301,132.28,132.27,61.98921529]
[1726701036017,0.2599301,132.28,132.27,60.47778318]
[1726701036512,0.2599301,132.28,132.27,61.98921548]
[1726701036892,0.2599301,132.28,132.27,60.47778318]
[1726701037889,0.2198602,132.32,132.27,34.01688318]
[1726701038093,0.2198602,132.32,132.3,7.5581]
[1726701038797,0.2198602,132.32,132.31,9.06943008]
[1726701039211,0.0984186,132.32,132.31,7.558]
[1726701042616,0.0984186,132.32,132.31,21.44939318]
[1726701042815,0.0984186,132.32,132.31,7.558]
[1726701043295,0.0984186,132.32,132.31,41.44939318]
[1726701043515,0.0984186,132.32,132.31,43.33697074]
[1726701043713,0.0984186,132.32,132.31,29.44557756]
[1726701043902,0.0984186,132.32,132.31,41.82586318]
[1726701044917,0.0984186,132.32,132.31,43.33661376]
[1726701045120,0.0984186,132.32,132.31,27.558]
[1726701045432,0.0984186,132.32,132.31,7.558]
[1726701045809,0.0984186,132.32,132.31,21.44939318]
[1726701046120,0.0984186,132.32,132.31,22.96044784]
[1726701046332,0.0984186,132.32,132.31,41.44939318]
[1726701046912,0.0984186,132.32,132.31,42.96040114]
[1726701047103,0.0984186,132.32,132.31,43.33687114]
[1726701047304,0.0984186,132.32,132.31,41.82586318]
[1726701048837,0.0984186,132.32,132.31,64.30876318]
[1726701050228,0.0984186,132.32,132.31,50.41737]
[1726701050409,0.0984186,132.32,132.31,64.30876318]
[1726701051309,0.0984186,132.32,132.31,50.41737]
[1726701051531,0.0984186,132.32,132.31,64.30876318]
[1726701052935,0.0984186,132.32,132.31,63.93229318]
[1726701054753,0.0984186,132.32,132.31,41.44939318]
[1726701058540,0.0984186,132.32,132.31,7.558]
[1726701060529,0.0984186,132.32,132.29,18.8969]
[1726701060835,0.0984186,132.32,132.3,7.5584]
[1726701061027,0.0984186,132.32,132.29,26.4558]
[1726701062122,0.0984186,132.32,132.3,7.5583]
[1726701063630,0.0984186,132.32,132.31,7.558]
[1726701064440,0.0984186,132.32,132.31,22.96068444]
[1726701064819,0.0984186,132.32,132.31,42.96068444]
[1726701065422,0.0984186,132.32,132.31,41.44939318]
[1726701065645,0.0984186,132.32,132.31,42.96046784]
[1726701066772,0.0984186,132.32,132.31,41.44939318]
[1726701067850,0.0984186,132.32,132.31,42.96040046]
[1726701068056,0.0984186,132.32,132.31,43.33687046]
[1726701069324,0.2553186,132.34,132.33,84.60967]
[1726701069527,0.2553186,132.34,132.33,100.01159237]
[1726701069771,0.2553186,132.34,132.33,98.50106318]
[1726701070337,0.2553186,132.34,132.33,100.01157307]
[1726701070656,0.2553186,132.38,132.33,100.01157307]
[1726701070657,0.2553186,132.38,132.37,26.56639]
[1726701070840,0.2553186,132.38,132.37,41.96805965]
[1726701071332,0.2553186,132.38,132.37,40.33229318]
[1726701072236,0.2553186,132.38,132.37,41.84260421]
[1726701072433,0.2553186,132.38,132.37,40.45778318]
[1726701072831,0.2553186,132.38,132.37,26.4409]
[1726701078053,0.2553186,132.38,132.34,18.8898]
[1726701078234,7.8094186,132.38,132.34,26.4459]
[1726701078436,0.2553186,132.38,132.34,26.4459]
[1726701082470,7.8096186,132.38,132.34,18.8898]
[1726701083067,7.5553,132.36,132.32,7.5572]
[1726701084854,7.5547,132.37,132.32,7.5572]
[1726701087284,7.8093186,132.38,132.34,7.5562]
[1726701087662,0.2553186,132.38,132.36,7.5551]
[1726701088056,0.2553186,132.38,132.37,9.06539297]
[1726701088256,0.2553186,132.38,132.37,7.5545]
[1726701088465,0.2553186,132.38,132.37,21.44589318]
[1726701090079,0.2553186,132.38,132.37,30.79756674]
[1726701091481,0.2553186,132.38,132.37,29.28707682]
[1726701091782,0.2553186,132.38,132.37,49.28707682]
[1726701092962,0.2553186,132.38,132.37,66.16465682]
[1726701093161,0.2553186,132.42,132.41,26.4329]
[1726701093366,0.2553186,132.42,132.41,48.31938254]
[1726701094159,0.2553186,132.42,132.41,46.80937]
[1726701100570,0.2553186,132.42,132.41,48.31908021]
[1726701100889,5.2553186,132.5,132.41,48.31908021]
[1726701100890,0.2557182,132.47,132.46,7.5492]
[1726701101074,0.5916786,132.47,132.46,7.5492]
[1726701103985,0.5916786,132.47,132.45,26.4245]
[1726701106184,0.5916786,132.47,132.46,7.5494]
[1726701112903,0.5916786,132.47,132.46,9.05914698]
[1726701113200,0.5916786,132.47,132.46,22.87374564]
[1726701113374,0.5916786,132.47,132.46,21.36399866]
[1726701115988,5.0,132.5,132.46,21.36399866]
[1726701115989,5.0,132.5,132.49,7.5477]
[1726701116185,5.5916786,132.5,132.49,7.5477]
[1726701116809,5.5916786,132.5,132.48,26.4185]
[1726701117912,13.1388786,132.5,132.45,26.4242]
[1726701118908,13.1388786,132.5,132.46,7.5492]
[1726701119681,5.5916786,132.5,132.46,7.5492]
[1726701120397,5.5916786,132.5,132.47,7.5488]
[1726701121101,5.5916786,132.5,132.48,7.5482]
[1726701122087,5.5916786,132.5,132.49,7.5477]
[1726701128720,5.5916786,132.5,132.48,7.5481]
[1726701129005,5.5916786,132.5,132.47,26.4203]
[1726701129301,5.5916786,132.5,132.47,18.8716]
[1726701129496,13.1389786,132.5,132.46,7.5493]
[1726701129699,13.1389786,132.5,132.45,7.5498]
[1726701129897,5.5916786,132.5,132.44,26.426]
[1726701130100,7.5479,132.49,132.44,26.426]
[1726701130899,7.5479,132.49,132.45,7.5498]
[1726701131115,8.1395786,132.49,132.45,7.5498]
[1726701131509,0.5916786,132.49,132.45,7.5498]
[1726701133985,8.1396786,132.49,132.45,7.5498]
[1726701134706,8.1396786,132.49,132.44,26.4259]
[1726701136592,7.5483,132.48,132.44,26.4259]
[1726701142712,8.1394786,132.49,132.45,7.5499]
[1726701143211,8.1394786,132.49,132.44,18.8755]
[1726701143391,7.5489,132.47,132.43,7.551]
[1726701144319,0.5916786,132.49,132.38,25.3195]
[1726701144320,19.4623786,132.49,132.38,25.3195]
[1726701144498,7.5507,132.44,132.39,7.553]
[1726701145324,7.5501,132.45,132.4,7.5527]
[1726701145609,7.5493,132.47,132.42,7.5516]
[1726701145825,7.5493,132.47,132.43,1.51000279]
[1726701146318,8.1409786,132.47,132.42,7.5516]
[1726701148316,8.1409786,132.47,132.4,18.8814]
[1726701148317,7.5494,132.46,132.41,7.5522]
[1726701148730,7.5501,132.45,132.4,26.4341]
[1726701149691,0.5916786,132.47,132.4,18.8814]
[1726701149897,7.5495,132.46,132.41,7.5522]
[1726701151002,7.5495,132.46,132.42,9.06172802]
[1726701151215,7.5495,132.46,132.42,7.5516]
[1726701151726,7.5495,132.46,132.41,7.5522]
[1726701153104,0.5916786,132.47,132.4,18.8814]
[1726701153314,0.5916786,132.47,132.43,7.5507]
[1726701153495,0.5916786,132.47,132.44,1.50988779]
[1726701154297,0.5916786,132.47,132.42,18.8786]
[1726701154728,7.5494,132.46,132.42,26.4303]
[1726701155303,8.1406786,132.47,132.42,26.4303]
[1726701156606,0.5916786,132.47,132.43,7.551]
[1726701156813,0.5916786,132.47,132.44,1.50988878]
[1726701159814,0.5916786,132.47,132.44,1.509927]
[1726701160013,0.5916786,132.47,132.43,7.551]
[1726701160535,0.5916786,132.47,132.44,7.5504]
[1726701160836,0.5916786,132.47,132.45,7.5499]
[1726701161325,0.5916786,132.47,132.46,1.50971237]
[1726701161530,0.5916786,132.47,132.45,7.5499]
[1726701165216,0.5916786,132.47,132.44,26.4263]
[1726701166031,0.5916786,132.47,132.45,7.5498]
[1726701167227,0.5916786,132.47,132.44,26.4263]
[1726701168532,8.1405786,132.47,132.44,18.8759]
[1726701168925,8.1405786,132.47,132.43,7.551]
[1726701169121,8.1405786,132.47,132.41,18.8797]
[1726701169122,7.5495,132.46,132.41,18.8797]
[1726701169325,7.5501,132.45,132.41,26.4318]
[1726701169508,0.25098,132.45,132.38,400.9843]
[1726701169715,7.5516,132.43,132.38,400.9843]
[1726701170330,7.5519,132.42,132.38,408.5381]
[1726701170639,7.5527,132.41,132.36,7.555]
[1726701171348,7.5529,132.4,132.36,7.555]
[1726701171635,7.5529,132.4,132.35,18.8883]
[1726701171636,0.12549,132.42,132.34,7.556]
[1726701171842,6.3043,132.41,132.32,18.8928]
[1726701172019,7.5535,132.39,132.34,7.5557]
[1726701172839,7.5535,132.39,132.32,18.8928]
[1726701172840,7.5529,132.4,132.35,7.5556]
[1726701174429,15.17419726,132.41,132.35,7.5556]
[1726701176421,15.25443946,132.41,132.35,7.5556]
[1726701178229,7.553,132.4,132.34,26.4459]
[1726701178435,7.70213946,132.41,132.34,26.4459]
[1726701178616,7.553,132.4,132.34,26.4459]
[1726701178822,7.553,132.4,132.35,7.5555]
[1726701179844,13.9369422,132.41,132.36,7.555]
[1726701181248,7.6326422,132.41,132.36,7.555]
[1726701181953,0.0802422,132.41,132.37,9.06532372]
[1726701182329,0.0802422,132.41,132.37,9.03539372]
[1726701183045,7.6326422,132.41,132.37,1.51082372]
[1726701183248,7.6326422,132.41,132.36,26.442]
[1726701184543,7.5529,132.4,132.36,18.887]
[1726701185143,7.5538,132.39,132.34,7.5561]
[1726701188151,7.5538,132.39,132.33,26.4484]
[1726701190051,7.5538,132.39,132.34,7.5562]
[1726701190250,7.5529,132.4,132.35,9.03656272]
[1726701190435,13.9432422,132.41,132.35,9.03656272]
[1726701191548,13.9432422,132.41,132.36,1.4807668]
[1726701191954,13.9432422,132.41,132.35,9.03636705]
[1726701192133,13.9432422,132.41,132.35,7.5556]
[1726701193656,7.6326422,132.41,132.35,7.5556]
[1726701196560,7.6326422,132.41,132.36,9.06595973]
[1726701196767,7.6326422,132.41,132.36,7.5551]
[1726701197452,7.6326422,132.41,132.35,7.5555]
[1726701200063,7.6326422,132.41,132.36,1.51085021]
[1726701200238,7.5529,132.4,132.35,7.5555]
[1726701201963,7.8837222,132.41,132.35,7.5555]
[1726701202849,7.5528,132.4,132.35,7.5555]
[1726701203462,7.5534,132.39,132.34,7.5562]
[1726701203637,7.5534,132.39,132.33,18.8917]
[1726701203638,7.554,132.38,132.33,26.4481]
[1726701203840,7.554,132.38,132.31,59.6944]
[1726701203841,7.5546,132.37,132.31,21.9071]
[1726701204148,7.5558,132.35,132.3,18.8955]
[1726701205246,7.5564,132.34,132.29,0.175476]
[1726701205452,7.5569,132.33,132.29,0.175476]
[1726701205645,0.25098,132.32,132.29,0.175476]
[1726701206559,7.5582,132.31,132.29,0.175476]
[1726701207368,0.37647,132.3,132.29,0.175476]
[1726701208158,1.69513133,132.3,132.29,0.175476]
[1726701208663,0.37647,132.32,132.29,0.175476]
[1726701208858,1.69498145,132.32,132.29,0.175476]
[1726701210553,1.31851145,132.32,132.29,0.175476]
[1726701211770,15.9249,132.33,132.29,0.175476]
[1726701213372,23.4819,132.33,132.29,0.175476]
[1726701214970,15.9249,132.33,132.29,0.175476]
[1726701216091,1.56930476,132.34,132.29,0.175476]
[1726701216275,9.12560476,132.34,132.29,0.175476]
[1726701217164,1.44381476,132.34,132.29,21.54907466]
[1726701218373,1.44381476,132.34,132.29,7.734476]
[1726701219258,9.00011476,132.34,132.29,7.734476]
[1726701220185,1.31832476,132.34,132.33,21.37139866]
[1726701220478,0.0802422,132.39,132.32,21.37189866]
[1726701220692,0.0802422,132.39,132.31,26.4521]
[1726701220693,7.555,132.37,132.31,26.4521]
[1726701221056,7.555,132.37,132.32,7.5574]
[1726701221261,8.87191266,132.38,132.32,7.5574]
[1726701221456,8.87191266,132.38,132.32,21.37199866]
[1726701221688,0.12549,132.37,132.32,21.37199866]
[1726701222977,0.0802422,132.39,132.31,18.8942]
[1726701222978,7.6337422,132.39,132.33,22.88266565]
[1726701223179,7.6337422,132.39,132.33,7.5568]
[1726701223862,7.5552,132.36,132.31,18.8942]
[1726701224383,7.80568,132.37,132.31,26.4521]
[1726701224757,0.12549,132.36,132.31,40.26669866]
[1726701226686,7.80568,132.37,132.32,7.5572]
[1726701227864,0.25098,132.37,132.32,7.5572]
[1726701228880,7.5541,132.38,132.33,7.5567]
[1726701229485,0.12549,132.37,132.32,7.5573]
[1726701229889,0.25098,132.38,132.32,7.5573]
[1726701230082,0.12549,132.37,132.32,7.5573]
[1726701230484,7.5558,132.35,132.3,7.5585]
[1726701230687,0.25098,132.34,132.3,7.5585]
[1726701232174,0.25098,132.34,132.29,23.471776]
[1726701235202,0.25098,132.34,132.3,7.5584]
[1726701237877,0.25098,132.34,132.29,23.471776]
[1726701240479,0.25098,132.34,132.29,37.28637466]
[1726701242805,0.25098,132.34,132.3,7.5584]
[1726701244894,7.5549,132.37,132.31,21.37199866]
[1726701245093,23.163025,132.39,132.32,34.21928926]
[1726701245094,7.554,132.38,132.32,34.21928926]
[1726701245293,8.87191655,132.38,132.32,32.70779866]
[1726701246006,8.87191655,132.38,132.33,7.5567]
[1726701246807,0.37647,132.37,132.33,7.5567]
[1726701247903,7.93107,132.37,132.32,40.26499866]
[1726701248205,7.93107,132.37,132.32,26.4504]
[1726701249211,7.93107,132.37,132.32,18.8932]
[1726701250195,7.93107,132.37,132.32,26.4505]
[1726701250584,7.93107,132.37,132.32,18.8932]
[1726701252082,7.5553,132.36,132.31,7.5578]
[1726701253309,7.80558,132.37,132.32,7.5573]
[1726701253898,8.87201655,132.38,132.33,7.5568]
[1726701254300,1.31791655,132.38,132.33,26.4486]
[1726701255300,8.87201655,132.38,132.33,26.4486]
[1726701256306,7.80558,132.37,132.32,7.5573]
[1726701256502,7.80568,132.37,132.31,7.5578]
[1726701256808,7.5554,132.36,132.3,40.26839866]
[1726701257627,7.5554,132.36,132.3,26.4538]
[1726701258226,7.5558,132.35,132.3,26.4538]
[1726701258395,7.5558,132.35,132.3,18.8955]
[1726701258598,0.12549,132.36,132.3,26.4539]
[1726701258809,0.25098,132.35,132.3,26.4539]
[1726701259204,7.80668,132.35,132.3,26.4539]
[1726701261525,7.5563,132.34,132.3,18.8955]
[1726701261828,7.5563,132.34,132.29,7.734376]
[1726701264733,0.25098,132.35,132.29,0.175476]
[1726701264734,7.5568,132.33,132.29,0.175476]
[1726701265632,7.5574,132.32,132.29,0.175476]
[1726701266102,7.558,132.31,132.29,0.175476]
[1726701268919,7.80858,132.32,132.29,0.175476]
[1726701274427,17.74938141,132.35,132.29,13.99007466]
[1726701274631,1.31828141,132.35,132.3,22.88424791]
[1726701274808,7.5553,132.36,132.31,7.5579]
[1726701275624,7.5553,132.36,132.3,40.26899866]
[1726701275816,0.12549,132.35,132.3,40.26899866]
[1726701276423,7.5557,132.35,132.3,40.26899866]
[1726701276718,7.5557,132.35,132.3,26.4544]
[1726701280449,7.80738,132.34,132.3,18.8961]
[1726701281144,7.80738,132.34,132.29,14.008176]
[1726701281440,7.557,132.33,132.29,0.175476]
[1726701282139,7.5575,132.32,132.29,0.175476]
[1726701282750,7.558,132.31,132.29,0.175476]
[1726701285723,7.80848,132.32,132.29,0.175476]
[1726701287832,7.5569,132.33,132.29,0.175476]
[1726701288728,0.25098,132.33,132.29,7.734576]
[1726701289350,7.5557,132.35,132.3,22.88462132]
[1726701289550,7.5557,132.35,132.3,38.12382132]
[1726701290656,7.5557,132.35,132.3,36.61209866]
[1726701290861,7.5557,132.35,132.3,38.12355844]
[1726701291141,7.5553,132.36,132.31,7.5579]
[1726701294545,7.68119,132.35,132.3,22.7975]
[1726701300451,7.5563,132.34,132.3,22.7975]
[1726701300665,7.5559,132.35,132.3,22.7975]
[1726701301162,7.5559,132.35,132.3,36.61209866]
[1726701301335,7.5559,132.35,132.31,6.1136]
[1726701301536,7.5563,132.34,132.31,6.1136]
[1726701302934,7.5557,132.35,132.31,6.1136]
[1726701303363,0.0802422,132.39,132.34,13.81459866]
[1726701303567,0.0802422,132.39,132.35,29.50009866]
[1726701303568,7.6336422,132.39,132.35,29.50009866]
[1726701305038,0.0802422,132.39,132.36,21.83887126]
[1726701305252,0.0802422,132.39,132.36,27.88259866]
[1726701308673,0.0802422,132.39,132.36,6.5133]
[1726701309067,7.5546,132.37,132.35,15.6855]
[1726701309250,7.5546,132.37,132.33,6.3275]
[1726701309582,7.5552,132.36,132.33,6.3275]
[1726701309874,7.5552,132.36,132.32,16.0661]
[1726701313973,7.5547,132.37,132.33,1.51134779]
[1726701314155,7.5547,132.37,132.32,37.43789866]
[1726701315273,7.5552,132.36,132.32,16.0661]
[1726701317367,7.5563,132.34,132.3,6.6352]
[1726701323184,54.4412154,132.38,132.29,16.654376]
[1726701323185,7.5569,132.33,132.29,16.654376]
[1726701323683,7.5584,132.31,132.29,0.175476]
[1726701323887,7.80948,132.3,132.29,0.175476]
[1726701324769,7.68399,132.3,132.29,0.175476]
[1726701325089,0.25098,132.33,132.29,0.175476]
[1726701326160,7.558,132.31,132.29,0.175476]
[1726701326572,7.80948,132.3,132.29,0.175476]
[1726701328786,7.93497,132.3,132.29,0.175476]
[1726701330180,7.80948,132.3,132.29,0.175476]
[1726701330488,7.68399,132.3,132.29,0.175476]
[1726701330787,34.06295915,132.32,132.29,0.175476]
[1726701331980,0.12549,132.31,132.29,0.175476]
[1726701332508,7.68349,132.31,132.29,0.175476]
[1726701333070,34.06295915,132.32,132.29,0.175476]
[1726701333071,41.62045915,132.32,132.29,0.175476]
[1726701333282,34.06295915,132.32,132.29,0.175476]
[1726701334179,41.62035915,132.32,132.29,0.175476]
[1726701334366,34.06295915,132.32,132.29,0.175476]
[1726701335070,7.5581,132.31,132.29,0.175476]
[1726701335395,7.68359,132.31,132.29,0.175476]
[1726701338371,7.5585,132.3,132.29,0.175476]
[1726701339403,7.80948,132.3,132.29,0.175476]
[1726701341182,7.93497,132.3,132.29,0.175476]
[1726701342887,7.80948,132.3,132.29,0.175476]
[1726701345375,7.93497,132.3,132.29,0.175476]
[1726701356103,7.80948,132.3,132.29,0.175476]
[1726701361592,1.31854294,132.31,132.29,0.175476]
[1726701361801,7.5575,132.32,132.29,22.676676]
[1726701367923,29.43844138,132.33,132.29,22.676676]
[1726701368113,29.43844138,132.33,132.29,36.49127466]
[1726701368510,29.43844138,132.33,132.3,13.81459866]
[1726701368900,29.43844138,132.33,132.31,7.5575]
[1726701369525,29.43844138,132.33,132.3,21.37299866]
[1726701370008,29.43844138,132.33,132.29,62.94737466]
[1726701375406,29.43844138,132.33,132.3,21.37299866]
[1726701375607,29.43844138,132.33,132.31,15.32600098]
[1726701376822,29.43844138,132.33,132.31,1.51140232]
[1726701377617,29.43844138,132.33,132.31,7.5578]
[1726701378219,29.43844138,132.33,132.31,9.06918459]
[1726701378424,29.43844138,132.33,132.3,21.37289866]
[1726701378628,29.43844138,132.33,132.3,7.5583]
[1726701385537,29.43844138,132.33,132.29,49.132676]
[1726701385729,36.99534138,132.33,132.29,62.94727466]
[1726701386125,36.99534138,132.33,132.3,13.81459866]
[1726701386330,29.43844138,132.33,132.3,21.37309866]
[1726701386538,29.43844138,132.33,132.31,22.88392904]
[1726701387044,7.5555,132.36,132.31,22.88392904]
[1726701387626,7.5547,132.37,132.33,21.37119866]
[1726701387843,7.5541,132.38,132.34,7.5562]
[1726701388140,7.6336422,132.39,132.34,22.88179035]
[1726701388536,7.6336422,132.39,132.35,7.5557]
[1726701388732,7.6336422,132.39,132.35,22.88120681]
[1726701388930,7.6336422,132.39,132.33,40.0507]
[1726701388931,0.0802422,132.39,132.36,13.81459866]
[1726701389136,0.0802422,132.39,132.37,1.51077304]
[1726701389334,0.0802422,132.39,132.36,21.36959866]
[1726701389944,0.0802422,132.39,132.38,29.06559866]
[1726701390152,0.0802422,132.39,132.38,42.87369866]
[1726701390548,0.0802422,132.39,132.38,44.384052]
[1726701390861,0.0802422,132.39,132.38,42.99918866]
[1726701391149,0.0802422,132.39,132.38,42.87369866]
[1726701392134,0.0802422,132.39,132.38,21.5051]
[1726701392331,0.0802422,132.39,132.35,21.37019866]
[1726701394041,0.0802422,132.39,132.35,7.5556]
[1726701394244,7.7591322,132.39,132.34,22.933]
[1726701394963,7.554,132.38,132.34,22.933]
[1726701395133,7.554,132.38,132.33,18.8908]
[1726701396561,7.5546,132.37,132.32,7.5573]
[1726701396737,7.5546,132.37,132.31,22.0514]
[1726701397059,7.5551,132.36,132.31,22.0514]
[1726701397263,7.5545,132.37,132.31,29.6093]
[1726701397562,7.5545,132.37,132.31,43.42389866]
[1726701398256,7.5545,132.37,132.32,13.81459866]
[1726701399558,7.5551,132.36,132.32,13.81459866]
[1726701402645,7.5563,132.34,132.3,18.8963]
[1726701402844,7.5563,132.34,132.29,0.175476]
[1726701403235,7.557,132.33,132.29,0.175476]
[1726701403443,0.12549,132.33,132.29,0.175476]
[1726701403958,0.12549,132.35,132.31,13.81459866]
[1726701403959,7.5558,132.35,132.31,13.81459866]
[1726701404157,7.80618,132.36,132.31,15.3259506]
[1726701405466,7.80618,132.36,132.31,13.81459866]
[1726701405843,7.80618,132.36,132.3,21.37299866]
[1726701406042,7.5557,132.35,132.3,21.37299866]
[1726701407339,7.5557,132.35,132.3,7.5584]
[1726701407645,7.5557,132.35,132.31,13.81459866]
[1726701413348,42.16783693,132.38,132.34,13.81459866]
[1726701413969,34.61353693,132.38,132.37,13.81459866]
[1726701414153,0.0802422,132.39,132.37,13.81459866]
[1726701414474,0.0802422,132.39,132.35,26.4438]
[1726701414648,0.0802422,132.39,132.35,40.25839866]
[1726701415171,0.0802422,132.39,132.35,32.70279866]
[1726701415951,0.2057322,132.39,132.35,18.8882]
[1726701416360,0.0802422,132.39,132.35,18.8882]
[1726701416656,0.0802422,132.39,132.36,13.81459866]
[1726701416856,0.0802422,132.39,132.36,21.36969866]
[1726701423792,0.0802422,132.39,132.36,7.5551]
[1726701423955,0.0802422,132.39,132.36,21.36969866]
[1726701424585,0.0802422,132.39,132.35,40.25839866]
[1726701425084,0.0802422,132.39,132.36,21.36959866]
[1726701426683,0.0802422,132.39,132.36,7.555]
[1726701427267,0.0802422,132.39,132.34,7.5561]
[1726701427268,7.6337422,132.39,132.34,7.5561]
[1726701427478,7.554,132.38,132.33,27.60399866]
[1726701427982,0.0802422,132.39,132.35,21.37029866]
[1726701428178,0.0802422,132.39,132.35,7.5557]
[1726701428768,7.6337422,132.39,132.34,21.37079866]
[1726701429163,0.0802422,132.39,132.35,9.06650095]
[1726701429366,0.0802422,132.39,132.36,1.51083167]
[1726701429772,0.0802422,132.39,132.35,7.5556]
[1726701431268,7.6336422,132.39,132.35,7.5556]
[1726701431484,7.6336422,132.39,132.34,7.5562]
[1726701431802,0.37647,132.38,132.3,6.5609]
[1726701431978,7.5561,132.35,132.3,14.1193]
[1726701432884,7.5561,132.35,132.3,7.5584]
[1726701433403,7.5561,132.35,132.3,21.37299866]
[1726701434471,7.5563,132.34,132.3,13.81459866]
[1726701434673,7.5563,132.34,132.29,56.59897466]
[1726701434874,7.5563,132.34,132.3,7.5585]
[1726701435370,7.5563,132.34,132.29,56.59897466]